[Event "Titled Tuesday Blitz March 14 Late 2023"]
[White "Karas, Marek"]
[Black "Martinez Alcantara, Jose Eduardo"]
[WhiteFideId "14928558"]
[BlackFideId "3805662"]
[WhiteElo "2233"]
[BlackElo "2712"]
[Result "1/2-1/2"]
[Round "01"]
[TimeControl "180+1"]
[Date "2023.03.14"]
[WhiteClock "0:00:09"]
[BlackClock "0:00:10"]

1. d4 {[%clk 0:02:59]}  Nf6 {[%clk 0:02:58]} 2. Nf3 {[%clk 0:02:59]}  e6 {[%clk 0:02:59]} 3. c4 {[%clk 0:02:59]}  Bb4+ {[%clk 0:02:58]} 4. Bd2 {[%clk 0:02:59]}  Qe7 {[%clk 0:02:57]} 5. e3 {[%clk 0:03:00]}  O-O {[%clk 0:02:56]} 6. Nc3 {[%clk 0:02:55]}  Bxc3 {[%clk 0:02:51]} 7. Bxc3 {[%clk 0:02:56]}  Ne4 {[%clk 0:02:51]} 8. Qc2 {[%clk 0:02:55]}  Nxc3 {[%clk 0:02:51]} 9. Qxc3 {[%clk 0:02:56]}  d6 {[%clk 0:02:51]} 10. Be2 {[%clk 0:02:54]}  Nd7 {[%clk 0:02:51]} 11. b4 {[%clk 0:02:43]}  b6 {[%clk 0:02:43]} 12. O-O {[%clk 0:02:40]}  Bb7 {[%clk 0:02:40]} 13. Rac1 {[%clk 0:02:32]}  c5 {[%clk 0:02:37]} 14. Rfd1 {[%clk 0:02:19]}  Nf6 {[%clk 0:02:34]} 15. bxc5 {[%clk 0:02:13]}  dxc5 {[%clk 0:02:33]} 16. Qa3 {[%clk 0:02:08]}  Rfd8 {[%clk 0:02:20]} 17. Ne5 {[%clk 0:02:07]}  Qc7 {[%clk 0:02:13]} 18. Bf3 {[%clk 0:02:04]}  Bxf3 {[%clk 0:02:12]} 19. Nxf3 {[%clk 0:02:05]}  cxd4 {[%clk 0:02:08]} 20. exd4 {[%clk 0:02:00]}  h6 {[%clk 0:02:04]} 21. h3 {[%clk 0:01:59]}  Rac8 {[%clk 0:02:02]} 22. Ne5 {[%clk 0:01:52]}  Nd7 {[%clk 0:01:45]} 23. Nf3 {[%clk 0:01:49]}  e5 {[%clk 0:01:25]} 24. dxe5 {[%clk 0:01:40]}  Nxe5 {[%clk 0:01:20]} 25. Rxd8+ {[%clk 0:01:37]}  Rxd8 {[%clk 0:01:20]} 26. Nxe5 {[%clk 0:01:37]}  Qxe5 {[%clk 0:01:21]} 27. Qxa7 {[%clk 0:01:30]}  Qf4 {[%clk 0:01:17]} 28. Rf1 {[%clk 0:01:23]}  Qxc4 {[%clk 0:01:09]} 29. Qxb6 {[%clk 0:01:23]}  Ra8 {[%clk 0:01:10]} 30. Qb3 {[%clk 0:01:21]}  Qd4 {[%clk 0:00:52]} 31. Rd1 {[%clk 0:01:17]}  Qa7 {[%clk 0:00:53]} 32. Ra1 {[%clk 0:01:14]}  Qd4 {[%clk 0:00:52]} 33. Rd1 {[%clk 0:01:12]}  Qa7 {[%clk 0:00:52]} 34. Rd2 {[%clk 0:01:12]}  Qe7 {[%clk 0:00:50]} 35. Qd1 {[%clk 0:01:03]}  g6 {[%clk 0:00:45]} 36. a4 {[%clk 0:01:00]}  Qh4 {[%clk 0:00:36]} 37. Ra2 {[%clk 0:00:57]}  Rd8 {[%clk 0:00:36]} 38. Qb3 {[%clk 0:00:49]}  Qf4 {[%clk 0:00:27]} 39. Ra1 {[%clk 0:00:43]}  Rb8 {[%clk 0:00:22]} 40. Qe3 {[%clk 0:00:39]}  Qf6 {[%clk 0:00:22]} 41. Re1 {[%clk 0:00:36]}  h5 {[%clk 0:00:20]} 42. a5 {[%clk 0:00:34]}  Ra8 {[%clk 0:00:21]} 43. Qe5 {[%clk 0:00:30]}  Qa6 {[%clk 0:00:18]} 44. Ra1 {[%clk 0:00:29]}  Qc4 {[%clk 0:00:18]} 45. Qf6 {[%clk 0:00:26]}  Ra6 {[%clk 0:00:15]} 46. Qd8+ {[%clk 0:00:23]}  Kg7 {[%clk 0:00:15]} 47. Qd2 {[%clk 0:00:23]}  Qb5 {[%clk 0:00:14]} 48. Qc3+ {[%clk 0:00:23]}  Kg8 {[%clk 0:00:14]} 49. g3 {[%clk 0:00:22]}  Qb7 {[%clk 0:00:12]} 50. h4 {[%clk 0:00:21]}  Qa8 {[%clk 0:00:11]} 51. Qb4 {[%clk 0:00:20]}  Qa7 {[%clk 0:00:09]} 52. Ra2 {[%clk 0:00:18]}  Kh7 {[%clk 0:00:09]} 53. Qb5 {[%clk 0:00:18]}  Re6 {[%clk 0:00:08]} 54. a6 {[%clk 0:00:13]}  Re1+ {[%clk 0:00:08]} 55. Kg2 {[%clk 0:00:14]}  Qd4 {[%clk 0:00:08]} 56. Qb3 {[%clk 0:00:11]}  Qe4+ {[%clk 0:00:08]} 57. f3 {[%clk 0:00:08]}  Re2+ {[%clk 0:00:08]} 58. Rxe2 {[%clk 0:00:08]}  Qxe2+ {[%clk 0:00:09]} 59. Kg1 {[%clk 0:00:08]}  Qe1+ {[%clk 0:00:08]} 60. Kg2 {[%clk 0:00:09]}  Qe2+ {[%clk 0:00:09]} 61. Kg1 {[%clk 0:00:09]}  Qe1+ {[%clk 0:00:10]} 62. Kg2 {[%clk 0:00:09]}  Qe2+ {[%clk 0:00:10]} 1/2-1/2


[Site "https://www.chess.com"]

[Event "Titled Tuesday Blitz March 14 Late 2023"]
[White "Kornyukov, Alexey"]
[Black "Kurtz, Eric M"]
[WhiteFideId "4150457"]
[BlackFideId "30939763"]
[WhiteElo "2352"]
[BlackElo "2601"]
[Result "0-1"]
[Round "01"]
[TimeControl "180+1"]
[Date "2023.03.14"]
[WhiteClock "0:00:11"]
[BlackClock "0:00:18"]

1. d4 {[%clk 0:02:54]}  Nf6 {[%clk 0:02:59]} 2. c4 {[%clk 0:02:54]}  c5 {[%clk 0:02:59]} 3. d5 {[%clk 0:02:54]}  b5 {[%clk 0:02:59]} 4. cxb5 {[%clk 0:02:53]}  a6 {[%clk 0:02:59]} 5. e3 {[%clk 0:02:49]}  Bb7 {[%clk 0:02:57]} 6. Nc3 {[%clk 0:02:36]}  g6 {[%clk 0:02:49]} 7. Nf3 {[%clk 0:02:20]}  Bg7 {[%clk 0:02:47]} 8. a4 {[%clk 0:02:19]}  O-O {[%clk 0:02:46]} 9. Ra3 {[%clk 0:02:20]}  d6 {[%clk 0:02:46]} 10. Be2 {[%clk 0:02:13]}  Nbd7 {[%clk 0:02:46]} 11. O-O {[%clk 0:02:08]}  Nb6 {[%clk 0:02:44]} 12. e4 {[%clk 0:02:01]}  axb5 {[%clk 0:02:44]} 13. Bxb5 {[%clk 0:01:55]}  Ne8 {[%clk 0:02:35]} 14. Qe2 {[%clk 0:01:43]}  Nc7 {[%clk 0:02:34]} 15. Bd3 {[%clk 0:01:42]}  Na6 {[%clk 0:02:20]} 16. a5 {[%clk 0:01:39]}  Nd7 {[%clk 0:02:17]} 17. Bg5 {[%clk 0:01:29]}  Re8 {[%clk 0:01:37]} 18. Bb5 {[%clk 0:01:23]}  h6 {[%clk 0:01:30]} 19. Bh4 {[%clk 0:01:20]}  Nc7 {[%clk 0:01:23]} 20. Bc4 {[%clk 0:01:15]}  Ba6 {[%clk 0:01:23]} 21. Nd2 {[%clk 0:01:07]}  Qc8 {[%clk 0:01:17]} 22. Rfa1 {[%clk 0:01:04]}  Qb7 {[%clk 0:01:11]} 23. Bxa6 {[%clk 0:01:01]}  Nxa6 {[%clk 0:01:11]} 24. Nc4 {[%clk 0:01:01]}  Kf8 {[%clk 0:01:03]} 25. Na4 {[%clk 0:00:58]}  Qb5 {[%clk 0:00:58]} 26. Qc2 {[%clk 0:00:50]}  Nb4 {[%clk 0:00:56]} 27. Qb3 {[%clk 0:00:50]}  Reb8 {[%clk 0:00:48]} 28. Nab6 {[%clk 0:00:43]}  Ra6 {[%clk 0:00:41]} 29. h3 {[%clk 0:00:35]}  Nf6 {[%clk 0:00:36]} 30. e5 {[%clk 0:00:28]}  Ne8 {[%clk 0:00:33]} 31. exd6 {[%clk 0:00:26]}  exd6 {[%clk 0:00:33]} 32. Qe3 {[%clk 0:00:23]}  Ra7 {[%clk 0:00:26]} 33. Re1 {[%clk 0:00:20]}  g5 {[%clk 0:00:24]} 34. Bg3 {[%clk 0:00:21]}  Nc2 {[%clk 0:00:23]} 35. Nxd6 {[%clk 0:00:17]}  Nxd6 {[%clk 0:00:20]} 36. Bxd6+ {[%clk 0:00:16]}  Kg8 {[%clk 0:00:20]} 37. Qe4 {[%clk 0:00:13]}  Rd8 {[%clk 0:00:18]} 38. Qxc2 {[%clk 0:00:09]}  Rxd6 {[%clk 0:00:18]} 39. Rd3 {[%clk 0:00:08]}  Qxa5 {[%clk 0:00:17]} 40. Nc4 {[%clk 0:00:08]}  Qxe1+ {[%clk 0:00:17]} 41. Kh2 {[%clk 0:00:08]}  Be5+ {[%clk 0:00:17]} 42. g3 {[%clk 0:00:09]}  Rf6 {[%clk 0:00:10]} 43. Kg2 {[%clk 0:00:08]}  Bd6 {[%clk 0:00:09]} 44. Re3 {[%clk 0:00:07]}  Qb4 {[%clk 0:00:09]} 45. Re8+ {[%clk 0:00:07]}  Kg7 {[%clk 0:00:09]} 46. Qe2 {[%clk 0:00:06]}  Qb7 {[%clk 0:00:07]} 47. Nxd6 {[%clk 0:00:06]}  Rxd6 {[%clk 0:00:07]} 48. Qe5+ {[%clk 0:00:06]}  Rf6 {[%clk 0:00:07]} 49. h4 {[%clk 0:00:05]}  gxh4 {[%clk 0:00:07]} 50. g4 {[%clk 0:00:03]}  Qd7 {[%clk 0:00:07]} 51. g5 {[%clk 0:00:03]}  hxg5 {[%clk 0:00:08]} 52. Qxg5+ {[%clk 0:00:03]}  Rg6 {[%clk 0:00:09]} 53. Qxg6+ {[%clk 0:00:03]}  fxg6 {[%clk 0:00:09]} 54. Re4 {[%clk 0:00:04]}  Qxd5 {[%clk 0:00:09]} 55. Kf3 {[%clk 0:00:04]}  Qxe4+ {[%clk 0:00:10]} 56. Kxe4 {[%clk 0:00:04]}  Rd7 {[%clk 0:00:10]} 57. Kf3 {[%clk 0:00:05]}  Kf6 {[%clk 0:00:11]} 58. Kg2 {[%clk 0:00:06]}  Kf5 {[%clk 0:00:12]} 59. f3 {[%clk 0:00:06]}  Rd3 {[%clk 0:00:13]} 60. Kf2 {[%clk 0:00:07]}  Rb3 {[%clk 0:00:14]} 61. Ke2 {[%clk 0:00:07]}  Rxb2+ {[%clk 0:00:14]} 62. Ke3 {[%clk 0:00:08]}  Rb4 {[%clk 0:00:15]} 63. f4 {[%clk 0:00:08]}  Rxf4 {[%clk 0:00:16]} 64. Ke2 {[%clk 0:00:08]}  h3 {[%clk 0:00:17]} 65. Kd3 {[%clk 0:00:09]}  Rg4 {[%clk 0:00:16]} 66. Ke3 {[%clk 0:00:10]}  h2 {[%clk 0:00:17]} 67. Kf3 {[%clk 0:00:10]}  h1=Q+ {[%clk 0:00:18]} 68. Kf2 {[%clk 0:00:11]}  Qh3 {[%clk 0:00:17]} 69. Ke1 {[%clk 0:00:10]}  Rg1+ {[%clk 0:00:17]} 70. Kf2 {[%clk 0:00:10]}  Rg2+ {[%clk 0:00:17]} 71. Kf1 {[%clk 0:00:11]}  Qh1# {[%clk 0:00:18]} 0-1


[Site "https://www.chess.com"]

[Event "Titled Tuesday Blitz March 14 Late 2023"]
[White "Kozin, Yuri"]
[Black "Bluebaum, Matthias"]
[WhiteFideId "4129920"]
[BlackFideId "24651516"]
[WhiteElo "2512"]
[BlackElo "2638"]
[Result "1-0"]
[Round "01"]
[TimeControl "180+1"]
[Date "2023.03.14"]
[WhiteClock "0:00:07"]
[BlackClock "0:00:02"]

1. e4 {[%clk 0:02:54]}  e6 {[%clk 0:03:00]} 2. d4 {[%clk 0:02:54]}  d5 {[%clk 0:03:01]} 3. Nd2 {[%clk 0:02:52]}  c5 {[%clk 0:03:01]} 4. exd5 {[%clk 0:02:51]}  Qxd5 {[%clk 0:03:01]} 5. Ngf3 {[%clk 0:02:50]}  cxd4 {[%clk 0:03:02]} 6. Bc4 {[%clk 0:02:50]}  Qd6 {[%clk 0:03:03]} 7. O-O {[%clk 0:02:46]}  Nf6 {[%clk 0:03:03]} 8. Nb3 {[%clk 0:02:47]}  Nc6 {[%clk 0:03:03]} 9. Nbxd4 {[%clk 0:02:47]}  Nxd4 {[%clk 0:03:04]} 10. Qxd4 {[%clk 0:02:47]}  Qxd4 {[%clk 0:03:05]} 11. Nxd4 {[%clk 0:02:48]}  Bd7 {[%clk 0:03:06]} 12. Be2 {[%clk 0:02:42]}  Rc8 {[%clk 0:03:06]} 13. Bf3 {[%clk 0:02:39]}  Bc5 {[%clk 0:03:06]} 14. Be3 {[%clk 0:02:38]}  e5 {[%clk 0:03:04]} 15. Nb3 {[%clk 0:02:31]}  Bxe3 {[%clk 0:03:04]} 16. fxe3 {[%clk 0:02:32]}  e4 {[%clk 0:03:03]} 17. Bd1 {[%clk 0:02:30]}  O-O {[%clk 0:02:55]} 18. Nd4 {[%clk 0:02:29]}  Nd5 {[%clk 0:02:55]} 19. Kf2 {[%clk 0:02:26]}  Nb6 {[%clk 0:02:32]} 20. c3 {[%clk 0:02:24]}  Nc4 {[%clk 0:02:32]} 21. Be2 {[%clk 0:02:09]}  Nxb2 {[%clk 0:01:42]} 22. Rab1 {[%clk 0:02:07]}  Nd3+ {[%clk 0:01:43]} 23. Bxd3 {[%clk 0:02:06]}  exd3 {[%clk 0:01:44]} 24. Rxb7 {[%clk 0:02:04]}  Bg4 {[%clk 0:01:42]} 25. Rb3 {[%clk 0:01:45]}  Rfd8 {[%clk 0:01:24]} 26. Ke1 {[%clk 0:01:38]}  Rd6 {[%clk 0:00:56]} 27. Kd2 {[%clk 0:01:34]}  Ra6 {[%clk 0:00:55]} 28. a3 {[%clk 0:01:31]}  h6 {[%clk 0:00:56]} 29. Kxd3 {[%clk 0:01:28]}  Rd8 {[%clk 0:00:56]} 30. h3 {[%clk 0:01:25]}  Be6 {[%clk 0:00:56]} 31. c4 {[%clk 0:01:25]}  Rc8 {[%clk 0:00:42]} 32. Rc1 {[%clk 0:01:23]}  Bd5 {[%clk 0:00:35]} 33. g3 {[%clk 0:01:12]}  Bg2 {[%clk 0:00:35]} 34. h4 {[%clk 0:01:10]}  Kh7 {[%clk 0:00:34]} 35. c5 {[%clk 0:00:58]}  Kg6 {[%clk 0:00:34]} 36. Rbc3 {[%clk 0:00:56]}  Kh5 {[%clk 0:00:28]} 37. c6 {[%clk 0:00:40]}  Kg4 {[%clk 0:00:28]} 38. c7 {[%clk 0:00:40]}  Rd6 {[%clk 0:00:23]} 39. Ke2 {[%clk 0:00:35]}  Be4 {[%clk 0:00:22]} 40. Rc4 {[%clk 0:00:30]}  Kxg3 {[%clk 0:00:20]} 41. Rg1+ {[%clk 0:00:27]}  Kh2 {[%clk 0:00:20]} 42. Rxg7 {[%clk 0:00:26]}  f5 {[%clk 0:00:20]} 43. Rc1 {[%clk 0:00:13]}  Kh3 {[%clk 0:00:19]} 44. Nf3 {[%clk 0:00:09]}  Bxf3+ {[%clk 0:00:04]} 45. Kxf3 {[%clk 0:00:09]}  Rd2 {[%clk 0:00:01]} 46. Rh1+ {[%clk 0:00:06]}  Rh2 {[%clk 0:00:01]} 47. Rg3+ {[%clk 0:00:07]}  Kxh4 {[%clk 0:00:02]} 48. Rxh2# {[%clk 0:00:07]} 1-0


[Site "https://www.chess.com"]

[Event "Titled Tuesday Blitz March 14 Late 2023"]
[White "Larino Nieto, David"]
[Black "Fernandez, Maria Florencia"]
[WhiteFideId "2256444"]
[BlackFideId "116459"]
[WhiteElo "2506"]
[BlackElo "2155"]
[Result "1-0"]
[Round "01"]
[TimeControl "180+1"]
[Date "2023.03.14"]
[WhiteClock "0:01:42"]
[BlackClock "0:00:08"]

1. e4 {[%clk 0:03:00]}  d6 {[%clk 0:02:58]} 2. Nc3 {[%clk 0:02:55]}  Nf6 {[%clk 0:02:46]} 3. g3 {[%clk 0:02:55]}  g6 {[%clk 0:02:46]} 4. Bg2 {[%clk 0:02:56]}  Bg7 {[%clk 0:02:39]} 5. d3 {[%clk 0:02:55]}  O-O {[%clk 0:02:37]} 6. h3 {[%clk 0:02:54]}  e5 {[%clk 0:02:36]} 7. Nge2 {[%clk 0:02:53]}  Ne8 {[%clk 0:02:30]} 8. O-O {[%clk 0:02:49]}  Nc6 {[%clk 0:02:28]} 9. Kh2 {[%clk 0:02:48]}  f5 {[%clk 0:02:27]} 10. f4 {[%clk 0:02:47]}  Nf6 {[%clk 0:02:25]} 11. Be3 {[%clk 0:02:43]}  Nh5 {[%clk 0:02:23]} 12. Qd2 {[%clk 0:02:40]}  Be6 {[%clk 0:02:11]} 13. Rf2 {[%clk 0:02:32]}  Qd7 {[%clk 0:02:09]} 14. Raf1 {[%clk 0:02:30]}  exf4 {[%clk 0:02:03]} 15. Nxf4 {[%clk 0:02:27]}  Nxf4 {[%clk 0:02:03]} 16. Bxf4 {[%clk 0:02:28]}  fxe4 {[%clk 0:01:54]} 17. Nxe4 {[%clk 0:02:29]}  Bd4 {[%clk 0:01:41]} 18. Be3 {[%clk 0:02:22]}  Rxf2 {[%clk 0:01:24]} 19. Qxf2 {[%clk 0:02:21]}  Bxe3 {[%clk 0:01:13]} 20. Qxe3 {[%clk 0:02:22]}  Qe7 {[%clk 0:01:01]} 21. Ng5 {[%clk 0:02:12]}  Bxa2 {[%clk 0:00:50]} 22. Qxe7 {[%clk 0:02:03]}  Nxe7 {[%clk 0:00:50]} 23. b3 {[%clk 0:02:02]}  Rf8 {[%clk 0:00:22]} 24. Ra1 {[%clk 0:01:54]}  Bxb3 {[%clk 0:00:17]} 25. cxb3 {[%clk 0:01:54]}  Rf5 {[%clk 0:00:13]} 26. Ne6 {[%clk 0:01:51]}  Rb5 {[%clk 0:00:12]} 27. Rf1 {[%clk 0:01:43]}  h5 {[%clk 0:00:08]} 28. Rf8+ {[%clk 0:01:42]} 1-0


[Site "https://www.chess.com"]

[Event "Titled Tuesday Blitz March 14 Late 2023"]
[White "Liu, Yi"]
[Black "Tanenbaum, Zachary"]
[WhiteFideId "3210588"]
[BlackFideId "2060850"]
[WhiteElo "2264"]
[BlackElo "2175"]
[Result "0-1"]
[Round "01"]
[TimeControl "180+1"]
[Date "2023.03.14"]
[WhiteClock "0:00:58"]
[BlackClock "0:00:15"]

1. e4 {[%clk 0:03:00]}  e5 {[%clk 0:02:26]} 2. Nf3 {[%clk 0:02:59]}  Nc6 {[%clk 0:02:26]} 3. Bb5 {[%clk 0:02:59]}  a6 {[%clk 0:02:26]} 4. Ba4 {[%clk 0:02:58]}  d6 {[%clk 0:02:27]} 5. O-O {[%clk 0:02:56]}  Nf6 {[%clk 0:02:27]} 6. Re1 {[%clk 0:02:57]}  Be7 {[%clk 0:02:28]} 7. d4 {[%clk 0:02:56]}  b5 {[%clk 0:02:27]} 8. Bb3 {[%clk 0:02:55]}  Nxd4 {[%clk 0:02:27]} 9. Nxd4 {[%clk 0:02:55]}  exd4 {[%clk 0:02:28]} 10. Qxd4 {[%clk 0:02:56]}  c5 {[%clk 0:02:28]} 11. Qd3 {[%clk 0:02:48]}  c4 {[%clk 0:02:28]} 12. Bxc4 {[%clk 0:02:48]}  bxc4 {[%clk 0:02:29]} 13. Qxc4 {[%clk 0:02:49]}  O-O {[%clk 0:02:28]} 14. Nc3 {[%clk 0:02:48]}  Be6 {[%clk 0:02:27]} 15. Qd3 {[%clk 0:02:46]}  Qb6 {[%clk 0:02:21]} 16. Be3 {[%clk 0:02:39]}  Qxb2 {[%clk 0:02:20]} 17. Rab1 {[%clk 0:02:39]}  Qa3 {[%clk 0:02:15]} 18. Rb7 {[%clk 0:02:37]}  Rfe8 {[%clk 0:02:01]} 19. f4 {[%clk 0:02:28]}  Rac8 {[%clk 0:01:55]} 20. Bd4 {[%clk 0:02:20]}  Rb8 {[%clk 0:00:43]} 21. Reb1 {[%clk 0:02:10]}  Rxb7 {[%clk 0:00:43]} 22. Rxb7 {[%clk 0:02:10]}  Qc1+ {[%clk 0:00:43]} 23. Kf2 {[%clk 0:01:43]}  Qxf4+ {[%clk 0:00:39]} 24. Kg1 {[%clk 0:01:43]}  Ng4 {[%clk 0:00:30]} 25. h3 {[%clk 0:01:28]}  Qh2+ {[%clk 0:00:28]} 26. Kf1 {[%clk 0:01:28]}  Qh1+ {[%clk 0:00:29]} 27. Bg1 {[%clk 0:01:28]}  Bc4 {[%clk 0:00:23]} 28. Qxc4 {[%clk 0:01:10]}  Ne3+ {[%clk 0:00:23]} 29. Kf2 {[%clk 0:01:10]}  Nxc4 {[%clk 0:00:22]} 30. Nd5 {[%clk 0:01:10]}  Bh4+ {[%clk 0:00:22]} 31. Kf1 {[%clk 0:01:05]}  Nd2+ {[%clk 0:00:21]} 32. Ke2 {[%clk 0:01:04]}  Qxg2+ {[%clk 0:00:22]} 33. Kd3 {[%clk 0:01:04]}  Qxg1 {[%clk 0:00:18]} 34. Nc7 {[%clk 0:01:03]}  Qf1+ {[%clk 0:00:15]} 35. Kxd2 {[%clk 0:00:59]}  Qe1+ {[%clk 0:00:15]} 36. Kd3 {[%clk 0:00:59]}  Qxe4+ {[%clk 0:00:15]} 37. Kc3 {[%clk 0:00:59]}  Qc6+ {[%clk 0:00:15]} 38. Kb3 {[%clk 0:00:58]}  Qxb7+ {[%clk 0:00:15]} 0-1


[Site "https://www.chess.com"]

[Event "Titled Tuesday Blitz March 14 Late 2023"]
[White "Manukian, Artak"]
[Black "Kamsky, Gata"]
[WhiteFideId "13301373"]
[BlackFideId "2000024"]
[WhiteElo "2130"]
[BlackElo "2666"]
[Result "1/2-1/2"]
[Round "01"]
[TimeControl "180+1"]
[Date "2023.03.14"]
[WhiteClock "0:00:35"]
[BlackClock "0:00:40"]

1. e4 {[%clk 0:02:56]}  g6 {[%clk 0:02:58]} 2. d4 {[%clk 0:02:56]}  Bg7 {[%clk 0:02:56]} 3. c3 {[%clk 0:02:54]}  d6 {[%clk 0:02:55]} 4. Bd3 {[%clk 0:02:53]}  e5 {[%clk 0:02:52]} 5. Nf3 {[%clk 0:02:52]}  Nc6 {[%clk 0:02:52]} 6. d5 {[%clk 0:02:52]}  Nce7 {[%clk 0:02:51]} 7. O-O {[%clk 0:02:49]}  h6 {[%clk 0:02:51]} 8. Nfd2 {[%clk 0:02:42]}  f5 {[%clk 0:02:38]} 9. c4 {[%clk 0:02:39]}  Nf6 {[%clk 0:02:37]} 10. Nc3 {[%clk 0:02:35]}  O-O {[%clk 0:02:36]} 11. b4 {[%clk 0:02:30]}  a5 {[%clk 0:02:35]} 12. bxa5 {[%clk 0:02:22]}  Rxa5 {[%clk 0:02:32]} 13. Nb3 {[%clk 0:02:22]}  Ra8 {[%clk 0:02:32]} 14. f3 {[%clk 0:02:19]}  c5 {[%clk 0:02:24]} 15. dxc6 {[%clk 0:02:16]}  bxc6 {[%clk 0:02:23]} 16. Be3 {[%clk 0:01:46]}  Kh7 {[%clk 0:02:17]} 17. a4 {[%clk 0:01:42]}  d5 {[%clk 0:02:14]} 18. cxd5 {[%clk 0:01:42]}  cxd5 {[%clk 0:02:14]} 19. Bc5 {[%clk 0:01:39]}  Be6 {[%clk 0:02:00]} 20. exd5 {[%clk 0:01:30]}  Nfxd5 {[%clk 0:01:58]} 21. Nxd5 {[%clk 0:01:24]}  Bxd5 {[%clk 0:01:58]} 22. Bb5 {[%clk 0:01:21]}  Rf7 {[%clk 0:01:57]} 23. Rf2 {[%clk 0:01:15]}  e4 {[%clk 0:01:51]} 24. fxe4 {[%clk 0:01:10]}  Bxe4 {[%clk 0:01:43]} 25. Qxd8 {[%clk 0:01:06]}  Rxd8 {[%clk 0:01:42]} 26. Re1 {[%clk 0:01:06]}  Bf6 {[%clk 0:00:53]} 27. a5 {[%clk 0:01:04]}  Nd5 {[%clk 0:00:48]} 28. Bc4 {[%clk 0:00:58]}  Rc7 {[%clk 0:00:44]} 29. Rxe4 {[%clk 0:00:37]}  fxe4 {[%clk 0:00:42]} 30. Bxd5 {[%clk 0:00:38]}  Rxd5 {[%clk 0:00:42]} 31. Rxf6 {[%clk 0:00:38]}  Rdxc5 {[%clk 0:00:41]} 32. Nxc5 {[%clk 0:00:37]}  Rxc5 {[%clk 0:00:41]} 33. Re6 {[%clk 0:00:35]}  Rxa5 {[%clk 0:00:40]} 34. Rxe4 {[%clk 0:00:35]} 1/2-1/2


[Site "https://www.chess.com"]

[Event "Titled Tuesday Blitz March 14 Late 2023"]
[White "Nazaretyan, Tigran"]
[Black "Erigaisi Arjun"]
[WhiteFideId "24162345"]
[BlackFideId "35009192"]
[WhiteElo "2111"]
[BlackElo "2737"]
[Result "0-1"]
[Round "01"]
[TimeControl "180+1"]
[Date "2023.03.14"]
[WhiteClock "0:00:38"]
[BlackClock "0:02:37"]

1. d4 {[%clk 0:02:58]}  d6 {[%clk 0:02:59]} 2. Nf3 {[%clk 0:02:57]}  g6 {[%clk 0:02:59]} 3. c4 {[%clk 0:02:56]}  Bg7 {[%clk 0:02:58]} 4. Nc3 {[%clk 0:02:56]}  Nc6 {[%clk 0:02:58]} 5. e3 {[%clk 0:02:51]}  e5 {[%clk 0:02:58]} 6. Be2 {[%clk 0:02:49]}  Nge7 {[%clk 0:02:56]} 7. O-O {[%clk 0:02:49]}  O-O {[%clk 0:02:56]} 8. b3 {[%clk 0:02:42]}  exd4 {[%clk 0:02:56]} 9. exd4 {[%clk 0:02:38]}  Nf5 {[%clk 0:02:55]} 10. Be3 {[%clk 0:02:29]}  Nxe3 {[%clk 0:02:51]} 11. fxe3 {[%clk 0:02:29]}  Re8 {[%clk 0:02:52]} 12. Qd3 {[%clk 0:02:22]}  Bf5 {[%clk 0:02:48]} 13. e4 {[%clk 0:02:21]}  Bg4 {[%clk 0:02:48]} 14. d5 {[%clk 0:02:14]}  Bxf3 {[%clk 0:02:48]} 15. gxf3 {[%clk 0:02:07]}  Qg5+ {[%clk 0:02:42]} 16. Kh1 {[%clk 0:02:05]}  Nb4 {[%clk 0:02:42]} 17. f4 {[%clk 0:01:22]}  Nxd3 {[%clk 0:02:42]} 18. fxg5 {[%clk 0:01:22]}  Bxc3 {[%clk 0:02:43]} 19. Bxd3 {[%clk 0:01:22]}  Bxa1 {[%clk 0:02:43]} 20. Rxa1 {[%clk 0:01:23]}  Kg7 {[%clk 0:02:43]} 21. Rf1 {[%clk 0:01:20]}  Re5 {[%clk 0:02:43]} 22. h4 {[%clk 0:01:20]}  a5 {[%clk 0:02:44]} 23. Kg2 {[%clk 0:01:18]}  a4 {[%clk 0:02:44]} 24. b4 {[%clk 0:01:18]}  a3 {[%clk 0:02:44]} 25. Kf3 {[%clk 0:01:13]}  h6 {[%clk 0:02:43]} 26. gxh6+ {[%clk 0:01:11]}  Kxh6 {[%clk 0:02:44]} 27. Kg4 {[%clk 0:01:11]}  Kg7 {[%clk 0:02:43]} 28. c5 {[%clk 0:01:08]}  Ra4 {[%clk 0:02:36]} 29. cxd6 {[%clk 0:01:03]}  cxd6 {[%clk 0:02:37]} 30. Rb1 {[%clk 0:01:03]}  Re7 {[%clk 0:02:37]} 31. Bb5 {[%clk 0:00:55]}  Rxe4+ {[%clk 0:02:37]} 32. Kg3 {[%clk 0:00:48]}  Raxb4 {[%clk 0:02:37]} 33. Rxb4 {[%clk 0:00:39]}  Rxb4 {[%clk 0:02:38]} 34. Bd7 {[%clk 0:00:38]}  Rb2 {[%clk 0:02:37]} 35. Bc8 {[%clk 0:00:38]}  Rxa2 {[%clk 0:02:36]} 36. Bxb7 {[%clk 0:00:38]}  Rd2 {[%clk 0:02:37]} 0-1


[Site "https://www.chess.com"]

[Event "Titled Tuesday Blitz March 14 Late 2023"]
[White "O`Gorman, Tom"]
[Black "Dylag, Emilia"]
[WhiteFideId "2508249"]
[BlackFideId "21805172"]
[WhiteElo "2271"]
[BlackElo "1878"]
[Result "1-0"]
[Round "01"]
[TimeControl "180+1"]
[Date "2023.03.14"]
[WhiteClock "0:00:29"]
[BlackClock "0:00:07"]

1. e4 {[%clk 0:02:55]}  e5 {[%clk 0:02:59]} 2. Nf3 {[%clk 0:02:51]}  Nc6 {[%clk 0:02:59]} 3. Nc3 {[%clk 0:02:51]}  Nf6 {[%clk 0:02:58]} 4. Be2 {[%clk 0:02:52]}  Be7 {[%clk 0:02:55]} 5. d4 {[%clk 0:02:50]}  exd4 {[%clk 0:02:50]} 6. Nxd4 {[%clk 0:02:51]}  O-O {[%clk 0:02:48]} 7. Nxc6 {[%clk 0:02:44]}  dxc6 {[%clk 0:02:47]} 8. e5 {[%clk 0:02:45]}  Nd5 {[%clk 0:02:43]} 9. Ne4 {[%clk 0:02:35]}  Bf5 {[%clk 0:02:42]} 10. Ng3 {[%clk 0:02:33]}  Bg6 {[%clk 0:02:42]} 11. O-O {[%clk 0:02:30]}  Nb4 {[%clk 0:02:39]} 12. c3 {[%clk 0:02:21]}  Nc2 {[%clk 0:02:22]} 13. Rb1 {[%clk 0:01:54]}  Na3 {[%clk 0:02:19]} 14. Ra1 {[%clk 0:01:53]}  Nc2 {[%clk 0:02:19]} 15. f4 {[%clk 0:01:20]}  Bc5+ {[%clk 0:02:05]} 16. Kh1 {[%clk 0:01:20]}  Qxd1 {[%clk 0:01:28]} 17. Bxd1 {[%clk 0:01:20]}  Nxa1 {[%clk 0:01:28]} 18. f5 {[%clk 0:01:20]}  Rad8 {[%clk 0:01:23]} 19. b4 {[%clk 0:01:15]}  Bb6 {[%clk 0:01:16]} 20. Bb2 {[%clk 0:01:14]}  Rd2 {[%clk 0:01:13]} 21. Bxa1 {[%clk 0:01:12]}  Rxa2 {[%clk 0:01:13]} 22. fxg6 {[%clk 0:01:10]}  Rxa1 {[%clk 0:01:10]} 23. gxh7+ {[%clk 0:00:56]}  Kh8 {[%clk 0:01:08]} 24. e6 {[%clk 0:00:53]}  f6 {[%clk 0:00:27]} 25. Bh5 {[%clk 0:00:51]}  Rxf1+ {[%clk 0:00:21]} 26. Nxf1 {[%clk 0:00:52]}  Kxh7 {[%clk 0:00:03]} 27. e7 {[%clk 0:00:52]}  Rc8 {[%clk 0:00:03]} 28. e8=Q {[%clk 0:00:52]}  Rxe8 {[%clk 0:00:03]} 29. Bxe8 {[%clk 0:00:52]}  c5 {[%clk 0:00:03]} 30. b5 {[%clk 0:00:50]}  Ba5 {[%clk 0:00:03]} 31. c4 {[%clk 0:00:50]}  Bc3 {[%clk 0:00:01]} 32. Ne3 {[%clk 0:00:49]}  Bd4 {[%clk 0:00:01]} 33. Nd5 {[%clk 0:00:49]}  c6 {[%clk 0:00:01]} 34. bxc6 {[%clk 0:00:48]}  bxc6 {[%clk 0:00:02]} 35. Bxc6 {[%clk 0:00:48]}  g5 {[%clk 0:00:02]} 36. g3 {[%clk 0:00:48]}  Kg6 {[%clk 0:00:02]} 37. Kg2 {[%clk 0:00:48]}  Kf5 {[%clk 0:00:03]} 38. Kf3 {[%clk 0:00:48]}  g4+ {[%clk 0:00:04]} 39. Kg2 {[%clk 0:00:47]}  Ke5 {[%clk 0:00:05]} 40. Bd7 {[%clk 0:00:45]}  Bb2 {[%clk 0:00:05]} 41. Bxg4 {[%clk 0:00:40]}  Kd4 {[%clk 0:00:06]} 42. Be2 {[%clk 0:00:35]}  a5 {[%clk 0:00:07]} 43. Nb6 {[%clk 0:00:29]} 1-0


[Site "https://www.chess.com"]